[Event "Late-Titled-Tuesday-Blitz-December-26-2023"]
[Site "Chess.com"]
[Date "2023.12.26"]
[Round "10"]
[White "Inepton_Fermion"]
[Black "miraitrunks"]
[Result "1-0"]
[WhiteElo "2401"]
[BlackElo "2078"]
[TimeControl "180+1"]
[EndTime "15:51:39 PST"]
[Termination "Inepton_Fermion won by checkmate"]

1. e4 {[%clk 0:03:00.9]} 1... e6 {[%clk 0:02:58.3]} 2. d3 {[%clk 0:03:00.2]}
2... d5 {[%clk 0:02:59.2]} 3. Nd2 {[%clk 0:03:00.5]} 3... dxe4 {[%clk
0:02:59.4]} 4. dxe4 {[%clk 0:03:00.7]} 4... e5 {[%clk 0:02:59.3]} 5. Ngf3 {[%clk
0:02:59.5]} 5... Nc6 {[%clk 0:02:59.2]} 6. Bc4 {[%clk 0:02:56]} 6... Be7 {[%clk
0:02:58.8]} 7. O-O {[%clk 0:02:54.7]} 7... Nf6 {[%clk 0:02:59.2]} 8. c3 {[%clk
0:02:47.7]} 8... O-O {[%clk 0:02:59]} 9. Qe2 {[%clk 0:02:43.1]} 9... Bg4 {[%clk
0:02:58.3]} 10. Rd1 {[%clk 0:02:42.3]} 10... Bd6 {[%clk 0:02:52.6]} 11. Nf1
{[%clk 0:02:32.4]} 11... Qe7 {[%clk 0:02:46.4]} 12. Ng3 {[%clk 0:02:31.1]} 12...
Rad8 {[%clk 0:02:41.1]} 13. h3 {[%clk 0:02:29.2]} 13... Be6 {[%clk 0:02:39.1]}
14. Bxe6 {[%clk 0:02:04.2]} 14... Qxe6 {[%clk 0:02:40]} 15. Nf5 {[%clk
0:02:00.3]} 15... Bc5 {[%clk 0:02:37.2]} 16. Bg5 {[%clk 0:01:54.1]} 16... h6
{[%clk 0:02:36.4]} 17. Bh4 {[%clk 0:01:47]} 17... Rxd1+ {[%clk 0:02:27.9]} 18.
Rxd1 {[%clk 0:01:47.9]} 18... Rd8 {[%clk 0:02:25.1]} 19. Rxd8+ {[%clk
0:01:47.2]} 19... Nxd8 {[%clk 0:02:26]} 20. Nd2 {[%clk 0:01:39.3]} 20... Kh7
{[%clk 0:02:17.3]} 21. Qf3 {[%clk 0:01:25.2]} 21... Qxa2 {[%clk 0:02:08]} 22.
Bxf6 {[%clk 0:01:23.3]} 22... gxf6 {[%clk 0:01:55.7]} 23. Qd3 {[%clk 0:01:04.1]}
23... Qa1+ {[%clk 0:01:48.4]} 24. Kh2 {[%clk 0:01:02.3]} 24... Bxf2 {[%clk
0:01:46.5]} 25. Nf3 {[%clk 0:00:53.2]} 25... Ne6 {[%clk 0:01:46]} 26. Qd7 {[%clk
0:00:49.7]} 26... Kg6 {[%clk 0:01:37.4]} 27. Qe8 {[%clk 0:00:46.3]} 27... Qc1
{[%clk 0:01:13]} 28. Qg8+ {[%clk 0:00:45.7]} 28... Kh5 {[%clk 0:01:12.6]} 29.
Qg4# {[%clk 0:00:40.2]} 1-0

[Event "Late-Titled-Tuesday-Blitz-December-26-2023"]
[Site "Chess.com"]
[Date "2023.12.26"]
[Round "10"]
[White "prime-morty"]
[Black "Korchmar_Vasiliy"]
[Result "0-1"]
[WhiteElo "2583"]
[BlackElo "2794"]
[TimeControl "180+1"]
[EndTime "15:51:44 PST"]
[Termination "Korchmar_Vasiliy won by resignation"]

1. c4 {[%clk 0:03:00]} 1... e6 {[%clk 0:02:59.7]} 2. Nc3 {[%clk 0:03:00.5]} 2...
d5 {[%clk 0:03:00.1]} 3. e3 {[%clk 0:03:01.1]} 3... Nf6 {[%clk 0:03:00]} 4. Nf3
{[%clk 0:03:01.7]} 4... Be7 {[%clk 0:02:58.3]} 5. g4 {[%clk 0:03:01.2]} 5... O-O
{[%clk 0:02:56.4]} 6. g5 {[%clk 0:03:00.8]} 6... Ne4 {[%clk 0:02:56.6]} 7. h4
{[%clk 0:03:01.4]} 7... c5 {[%clk 0:02:50.2]} 8. Qc2 {[%clk 0:03:01.6]} 8...
Nxc3 {[%clk 0:02:36.8]} 9. bxc3 {[%clk 0:03:02.5]} 9... Nc6 {[%clk 0:02:35.7]}
10. Bd3 {[%clk 0:03:02.6]} 10... g6 {[%clk 0:02:34.4]} 11. h5 {[%clk 0:03:02.6]}
11... Kg7 {[%clk 0:02:14.3]} 12. hxg6 {[%clk 0:02:19.8]} 12... fxg6 {[%clk
0:02:09.7]} 13. Bxg6 {[%clk 0:02:17.9]} 13... hxg6 {[%clk 0:01:49.3]} 14. Rh6
{[%clk 0:02:14.9]} 14... Qe8 {[%clk 0:01:49.8]} 15. Nh4 {[%clk 0:02:14.8]} 15...
Ne5 {[%clk 0:01:50.4]} 16. f4 {[%clk 0:02:12.1]} 16... Bxg5 {[%clk 0:01:29.3]}
17. fxg5 {[%clk 0:02:10.2]} 17... Qf7 {[%clk 0:01:29.8]} 18. Nf5+ {[%clk
0:01:31]} 18... Qxf5 {[%clk 0:01:25.6]} 19. Qxf5 {[%clk 0:01:31.2]} 19... Rxf5
{[%clk 0:01:24.9]} 20. cxd5 {[%clk 0:01:31.4]} 20... exd5 {[%clk 0:01:23.9]} 21.
d4 {[%clk 0:01:29.1]} 21... Nd3+ {[%clk 0:01:23.9]} 22. Ke2 {[%clk 0:01:29.1]}
22... c4 {[%clk 0:01:16.1]} 23. Rh2 {[%clk 0:01:29.3]} 23... Rxg5 {[%clk
0:01:13.8]} 24. Ba3 {[%clk 0:01:28.5]} 24... Bg4+ {[%clk 0:01:09.9]} 25. Kd2
{[%clk 0:01:27.7]} 25... Rh8 {[%clk 0:01:08.5]} 26. Rxh8 {[%clk 0:01:22.3]}
26... Kxh8 {[%clk 0:01:08.1]} 27. Rg1 {[%clk 0:01:22.7]} 27... Nf2 {[%clk
0:00:58.9]} 28. Be7 {[%clk 0:01:12.1]} 28... Rh5 {[%clk 0:00:58.7]} 29. Rg2
{[%clk 0:01:06.6]} 29... Ne4+ {[%clk 0:00:58.5]} 30. Kc2 {[%clk 0:01:05.9]}
30... Bf5 {[%clk 0:00:58.5]} 31. Kb2 {[%clk 0:01:04.6]} 31... Kg8 {[%clk
0:00:57.6]} 0-1

[Event "Late-Titled-Tuesday-Blitz-December-26-2023"]
[Site "Chess.com"]
[Date "2023.12.26"]
[Round "10"]
[White "giomar27"]
[Black "nassimzrikem"]
[Result "1/2-1/2"]
[WhiteElo "2380"]
[BlackElo "2263"]
[TimeControl "180+1"]
[EndTime "15:51:47 PST"]
[Termination "Game drawn by repetition"]

1. b3 {[%clk 0:03:00.9]} 1... c5 {[%clk 0:02:56.4]} 2. Bb2 {[%clk 0:02:59.9]}
2... d5 {[%clk 0:02:56.9]} 3. Nf3 {[%clk 0:02:58.7]} 3... Nc6 {[%clk 0:02:57.2]}
4. e3 {[%clk 0:02:58.1]} 4... Qc7 {[%clk 0:02:56.4]} 5. Bb5 {[%clk 0:02:58]}
5... a6 {[%clk 0:02:55.5]} 6. Bxc6+ {[%clk 0:02:58.1]} 6... Qxc6 {[%clk
0:02:55.4]} 7. O-O {[%clk 0:02:57.5]} 7... Nf6 {[%clk 0:02:54.6]} 8. d3 {[%clk
0:02:57.5]} 8... e6 {[%clk 0:02:54.5]} 9. Nbd2 {[%clk 0:02:56.6]} 9... Qc7
{[%clk 0:02:48.9]} 10. Ne5 {[%clk 0:02:56.5]} 10... Bd6 {[%clk 0:02:47.2]} 11.
f4 {[%clk 0:02:56.6]} 11... b5 {[%clk 0:02:39]} 12. Rf3 {[%clk 0:02:56.3]} 12...
Bb7 {[%clk 0:02:38.1]} 13. Rg3 {[%clk 0:02:56.4]} 13... O-O-O {[%clk 0:02:27.5]}
14. Rxg7 {[%clk 0:02:54]} 14... Rdf8 {[%clk 0:02:17.6]} 15. Ndf3 {[%clk
0:02:48.2]} 15... Rhg8 {[%clk 0:02:13.1]} 16. Rxg8 {[%clk 0:02:46.2]} 16... Rxg8
{[%clk 0:02:14]} 17. Ng5 {[%clk 0:02:46]} 17... d4 {[%clk 0:02:10.1]} 18. exd4
{[%clk 0:02:39.9]} 18... h6 {[%clk 0:02:01.3]} 19. Ne4 {[%clk 0:02:33]} 19...
Nxe4 {[%clk 0:01:58.6]} 20. dxe4 {[%clk 0:02:32.3]} 20... Bxe4 {[%clk
0:01:58.8]} 21. g3 {[%clk 0:02:31.5]} 21... Bxe5 {[%clk 0:01:56.2]} 22. dxe5
{[%clk 0:02:29.5]} 22... Ba8 {[%clk 0:01:52.7]} 23. Qd6 {[%clk 0:02:27.1]} 23...
Qb7 {[%clk 0:01:46.9]} 24. Qxc5+ {[%clk 0:02:25.4]} 24... Kb8 {[%clk 0:01:47.3]}
25. Qd6+ {[%clk 0:02:24.6]} 25... Kc8 {[%clk 0:01:47.6]} 26. Qc5+ {[%clk
0:02:10.5]} 26... Kd7 {[%clk 0:01:39.1]} 27. Qd6+ {[%clk 0:01:37.1]} 27... Ke8
{[%clk 0:01:38.2]} 28. Kf2 {[%clk 0:01:37.1]} 28... Qf3+ {[%clk 0:01:30.1]} 29.
Ke1 {[%clk 0:01:36.3]} 29... Qe3+ {[%clk 0:01:22.9]} 30. Kf1 {[%clk 0:01:34.1]}
30... Qf3+ {[%clk 0:00:54]} 31. Ke1 {[%clk 0:01:34.2]} 31... Qe3+ {[%clk
0:00:29.4]} 32. Kf1 {[%clk 0:01:33]} 32... Qf3+ {[%clk 0:00:16.9]} 33. Ke1
{[%clk 0:01:32.8]} 1/2-1/2

[Event "Late-Titled-Tuesday-Blitz-December-26-2023"]
[Site "Chess.com"]
[Date "2023.12.26"]
[Round "10"]
[White "venturov"]
[Black "Statham_l3"]
[Result "0-1"]
[WhiteElo "2495"]
[BlackElo "2567"]
[TimeControl "180+1"]
[EndTime "15:52:00 PST"]
[Termination "Statham_l3 won by resignation"]

1. Nf3 {[%clk 0:03:00.9]} 1... d5 {[%clk 0:02:57.7]} 2. g3 {[%clk 0:02:59.5]}
2... Nc6 {[%clk 0:02:58]} 3. d4 {[%clk 0:02:58]} 3... Bf5 {[%clk 0:02:58.1]} 4.
Bg2 {[%clk 0:02:55.8]} 4... Nb4 {[%clk 0:02:58.6]} 5. Na3 {[%clk 0:02:55.2]}
5... e6 {[%clk 0:02:59.2]} 6. O-O {[%clk 0:02:51.3]} 6... Nf6 {[%clk 0:02:59.5]}
7. c3 {[%clk 0:02:50.8]} 7... Nc6 {[%clk 0:03:00]} 8. c4 {[%clk 0:02:48.1]} 8...
Bxa3 {[%clk 0:02:59.7]} 9. bxa3 {[%clk 0:02:49]} 9... O-O {[%clk 0:02:59.5]} 10.
Bg5 {[%clk 0:02:34.9]} 10... h6 {[%clk 0:02:57.6]} 11. Bxf6 {[%clk 0:02:35.2]}
11... Qxf6 {[%clk 0:02:58.5]} 12. cxd5 {[%clk 0:02:35.2]} 12... exd5 {[%clk
0:02:59.4]} 13. e3 {[%clk 0:02:31]} 13... Be4 {[%clk 0:02:59.6]} 14. Ne1 {[%clk
0:02:17.6]} 14... Ne7 {[%clk 0:02:34.8]} 15. Nd3 {[%clk 0:02:13.2]} 15... Qf5
{[%clk 0:02:18.7]} 16. Nc5 {[%clk 0:01:48.1]} 16... Bxg2 {[%clk 0:02:12.1]} 17.
Kxg2 {[%clk 0:01:49]} 17... b6 {[%clk 0:02:06.3]} 18. Na6 {[%clk 0:01:46.3]}
18... Rac8 {[%clk 0:01:59]} 19. Rc1 {[%clk 0:01:46.2]} 19... c6 {[%clk
0:01:47.6]} 20. Qc2 {[%clk 0:01:36.5]} 20... Qd7 {[%clk 0:01:40.4]} 21. Nb4
{[%clk 0:01:31.9]} 21... c5 {[%clk 0:01:35.8]} 22. dxc5 {[%clk 0:01:25.5]} 22...
bxc5 {[%clk 0:01:36.7]} 23. Nd3 {[%clk 0:01:26.2]} 23... c4 {[%clk 0:01:25.3]}
24. Nf4 {[%clk 0:01:26.3]} 24... Rfd8 {[%clk 0:01:12]} 25. Rfd1 {[%clk
0:01:26.5]} 25... Qc6 {[%clk 0:01:05.1]} 26. Kg1 {[%clk 0:01:15.8]} 26... Rb8
{[%clk 0:01:02.1]} 27. e4 {[%clk 0:01:06.9]} 27... dxe4 {[%clk 0:00:50]} 28.
Rxd8+ {[%clk 0:01:07.8]} 28... Rxd8 {[%clk 0:00:50.4]} 29. Qxc4 {[%clk
0:01:08.6]} 29... Rd1+ {[%clk 0:00:35.2]} 30. Kg2 {[%clk 0:01:03.8]} 30... Rxc1
{[%clk 0:00:35]} 0-1

[Event "Late-Titled-Tuesday-Blitz-December-26-2023"]
[Site "Chess.com"]
[Date "2023.12.26"]
[Round "10"]
[White "Viktor_Poddubnyi"]
[Black "The_Straightforward_Rook"]
[Result "1-0"]
[WhiteElo "2304"]
[BlackElo "2395"]
[TimeControl "180+1"]
[EndTime "15:52:00 PST"]
[Termination "Viktor_Poddubnyi won by resignation"]

1. e4 {[%clk 0:03:00.9]} 1... c6 {[%clk 0:02:57.9]} 2. d4 {[%clk 0:03:00.2]}
2... d5 {[%clk 0:02:58.1]} 3. exd5 {[%clk 0:03:00.6]} 3... cxd5 {[%clk 0:02:59]}
4. c4 {[%clk 0:03:01]} 4... Nf6 {[%clk 0:02:58.7]} 5. Nc3 {[%clk 0:03:01.3]}
5... Nc6 {[%clk 0:02:57.7]} 6. Bg5 {[%clk 0:03:00.7]} 6... Be6 {[%clk
0:02:56.8]} 7. a3 {[%clk 0:02:58.9]} 7... g6 {[%clk 0:02:54.9]} 8. Bxf6 {[%clk
0:02:58.4]} 8... exf6 {[%clk 0:02:54.4]} 9. cxd5 {[%clk 0:02:54.1]} 9... Bxd5
{[%clk 0:02:54.7]} 10. Qe2+ {[%clk 0:02:54.1]} 10... Be7 {[%clk 0:02:54.8]} 11.
Qb5 {[%clk 0:02:53.1]} 11... Be6 {[%clk 0:02:36.8]} 12. d5 {[%clk 0:02:52.9]}
12... Bd7 {[%clk 0:02:35.9]} 13. dxc6 {[%clk 0:02:49.8]} 13... Bxc6 {[%clk
0:02:36.8]} 14. Qb3 {[%clk 0:02:22.6]} 14... O-O {[%clk 0:02:30.6]} 15. Nf3
{[%clk 0:02:21.3]} 15... Re8 {[%clk 0:02:14.7]} 16. Be2 {[%clk 0:02:21.1]} 16...
Bd6 {[%clk 0:02:11.3]} 17. O-O {[%clk 0:02:06]} 17... Re7 {[%clk 0:02:08.2]} 18.
Rad1 {[%clk 0:01:54.8]} 18... Qb8 {[%clk 0:02:02.7]} 19. h3 {[%clk 0:01:32.8]}
19... a5 {[%clk 0:01:57.8]} 20. Rfe1 {[%clk 0:01:15.8]} 20... a4 {[%clk
0:01:53.9]} 21. Qc4 {[%clk 0:01:06.7]} 21... Ra5 {[%clk 0:01:52.1]} 22. Nd4
{[%clk 0:00:53.7]} 22... Bh2+ {[%clk 0:01:38.9]} 23. Kf1 {[%clk 0:00:43.3]}
23... Bxg2+ {[%clk 0:01:29.4]} 24. Kxg2 {[%clk 0:00:40.6]} 24... Rg5+ {[%clk
0:01:30.3]} 25. Bg4 {[%clk 0:00:19.6]} 25... Rxe1 {[%clk 0:01:25.3]} 26. Rxe1
{[%clk 0:00:20.5]} 26... h5 {[%clk 0:01:24]} 27. Nf3 {[%clk 0:00:19.8]} 27...
hxg4 {[%clk 0:01:22.9]} 28. Nxg5 {[%clk 0:00:19.3]} 28... gxh3+ {[%clk
0:01:23.8]} 29. Nxh3 {[%clk 0:00:18.9]} 29... Kg7 {[%clk 0:01:22.6]} 30. Re7
{[%clk 0:00:18.8]} 1-0

[Event "Late-Titled-Tuesday-Blitz-December-26-2023"]
[Site "Chess.com"]
[Date "2023.12.26"]
[Round "10"]
[White "ccccvhhhj"]
[Black "AkatsukiLogHorizon"]
[Result "1-0"]
[WhiteElo "2500"]
[BlackElo "2249"]
[TimeControl "180+1"]
[EndTime "15:52:12 PST"]
[Termination "ccccvhhhj won by resignation"]

1. e4 {[%clk 0:03:00.9]} 1... c5 {[%clk 0:02:59.9]} 2. Nf3 {[%clk 0:03:01.4]}
2... e6 {[%clk 0:02:59.9]} 3. b4 {[%clk 0:03:01.1]} 3... cxb4 {[%clk 0:02:57.8]}
4. a3 {[%clk 0:03:01.8]} 4... bxa3 {[%clk 0:02:57.6]} 5. Nxa3 {[%clk 0:03:02.7]}
5... Nc6 {[%clk 0:02:56.5]} 6. c3 {[%clk 0:03:02.7]} 6... Nf6 {[%clk 0:02:55.4]}
7. Bd3 {[%clk 0:02:59.7]} 7... d5 {[%clk 0:02:55]} 8. e5 {[%clk 0:03:00.1]} 8...
Nd7 {[%clk 0:02:55]} 9. Qe2 {[%clk 0:02:55.1]} 9... Be7 {[%clk 0:02:51.5]} 10.
Bc2 {[%clk 0:02:53.1]} 10... O-O {[%clk 0:02:48.6]} 11. d4 {[%clk 0:02:53.7]}
11... f5 {[%clk 0:02:43.1]} 12. O-O {[%clk 0:02:47.6]} 12... b6 {[%clk
0:02:38.3]} 13. Nb5 {[%clk 0:02:47.6]} 13... a6 {[%clk 0:02:30.6]} 14. Nd6
{[%clk 0:02:47.9]} 14... Bxd6 {[%clk 0:02:29.3]} 15. exd6 {[%clk 0:02:48.8]}
15... Nf6 {[%clk 0:02:29.2]} 16. Ba4 {[%clk 0:02:33.2]} 16... Nb8 {[%clk
0:02:01.2]} 17. Ba3 {[%clk 0:02:32.1]} 17... Bd7 {[%clk 0:02:01.2]} 18. Bxd7
{[%clk 0:02:27.7]} 18... Nbxd7 {[%clk 0:02:01.1]} 19. Qxe6+ {[%clk 0:02:27]}
19... Kh8 {[%clk 0:02:00.7]} 20. Qxf5 {[%clk 0:02:24.7]} 20... g6 {[%clk
0:01:54.1]} 21. Qd3 {[%clk 0:02:09.1]} 21... b5 {[%clk 0:01:52.1]} 22. Ne5
{[%clk 0:02:07.4]} 22... Kg7 {[%clk 0:01:37.1]} 23. Rae1 {[%clk 0:01:54.9]}
23... Rc8 {[%clk 0:01:31.3]} 24. Nxd7 {[%clk 0:01:48.8]} 24... Nxd7 {[%clk
0:01:31.3]} 25. Re7+ {[%clk 0:01:49.3]} 25... Rf7 {[%clk 0:01:31.3]} 26. Rfe1
{[%clk 0:01:45.4]} 26... Nf6 {[%clk 0:01:11.7]} 27. Rxf7+ {[%clk 0:01:36.7]}
27... Kxf7 {[%clk 0:01:11.7]} 28. Re7+ {[%clk 0:01:37.1]} 28... Kg8 {[%clk
0:01:11.7]} 29. Qh3 {[%clk 0:01:29.2]} 29... Kh8 {[%clk 0:00:29.6]} 30. Qe6
{[%clk 0:01:05.7]} 30... Qf8 {[%clk 0:00:21.5]} 31. Rf7 {[%clk 0:01:01.3]} 1-0

[Event "Late-Titled-Tuesday-Blitz-December-26-2023"]
[Site "Chess.com"]
[Date "2023.12.26"]
[Round "10"]
[White "NovakRatko"]
[Black "mariofs"]
[Result "1-0"]
[WhiteElo "2437"]
[BlackElo "2212"]
[TimeControl "180+1"]
[EndTime "15:52:14 PST"]
[Termination "NovakRatko won by resignation"]

1. d4 {[%clk 0:03:00.9]} 1... d5 {[%clk 0:02:59.8]} 2. c4 {[%clk 0:03:01.3]}
2... c6 {[%clk 0:03:00]} 3. cxd5 {[%clk 0:03:02]} 3... cxd5 {[%clk 0:03:00.1]}
4. Nc3 {[%clk 0:03:02.9]} 4... Nf6 {[%clk 0:02:59.8]} 5. f3 {[%clk 0:03:03.7]}
5... Bf5 {[%clk 0:02:45.3]} 6. Bg5 {[%clk 0:03:03.1]} 6... Nbd7 {[%clk
0:01:51.9]} 7. e4 {[%clk 0:03:01.9]} 7... dxe4 {[%clk 0:01:50.3]} 8. Bxf6 {[%clk
0:03:02.2]} 8... Nxf6 {[%clk 0:01:43.9]} 9. fxe4 {[%clk 0:03:02.4]} 9... Bd7
{[%clk 0:01:39.6]} 10. e5 {[%clk 0:03:01.7]} 10... Ng8 {[%clk 0:01:36.7]} 11.
Nf3 {[%clk 0:03:01.3]} 11... e6 {[%clk 0:01:36.9]} 12. Bd3 {[%clk 0:03:00.3]}
12... Ne7 {[%clk 0:01:34.5]} 13. Qc2 {[%clk 0:02:57.9]} 13... h6 {[%clk
0:01:33.5]} 14. O-O {[%clk 0:02:57.3]} 14... Rc8 {[%clk 0:01:33.1]} 15. Qf2
{[%clk 0:02:51.2]} 15... Nd5 {[%clk 0:01:18.2]} 16. Nd2 {[%clk 0:02:37.5]} 16...
Qe7 {[%clk 0:01:16.6]} 17. Nce4 {[%clk 0:02:36.8]} 17... f5 {[%clk 0:01:03.8]}
18. Nd6+ {[%clk 0:02:34.6]} 18... Kd8 {[%clk 0:01:04.2]} 19. Nxc8 {[%clk
0:02:34.4]} 19... Bxc8 {[%clk 0:01:05.1]} 20. Nc4 {[%clk 0:02:32.3]} 20... Qd7
{[%clk 0:01:00.7]} 21. Rac1 {[%clk 0:02:28.5]} 21... b6 {[%clk 0:01:00.7]} 22.
Qg3 {[%clk 0:02:19.1]} 22... Bb7 {[%clk 0:00:57.7]} 23. Nd6 {[%clk 0:02:18.8]}
23... g5 {[%clk 0:00:49.3]} 24. Bb5 {[%clk 0:02:18.4]} 24... Qg7 {[%clk
0:00:41.1]} 25. Nxb7+ {[%clk 0:02:13.7]} 25... Qxb7 {[%clk 0:00:40.4]} 26. Bc6
{[%clk 0:02:12.5]} 26... Qf7 {[%clk 0:00:31]} 27. Bxd5 {[%clk 0:02:10.6]} 27...
exd5 {[%clk 0:00:31.9]} 28. Qc3 {[%clk 0:02:10.9]} 28... Qd7 {[%clk 0:00:28.9]}
29. e6 {[%clk 0:02:05]} 29... Qd6 {[%clk 0:00:25.1]} 30. Qc8+ {[%clk 0:02:02.8]}
30... Ke7 {[%clk 0:00:22.8]} 31. Rc7+ {[%clk 0:01:58.4]} 31... Kf6 {[%clk
0:00:23.2]} 32. Rf7+ {[%clk 0:01:58.5]} 32... Kg6 {[%clk 0:00:22.2]} 33. R1xf5
{[%clk 0:01:36.2]} 33... Bg7 {[%clk 0:00:20.2]} 34. Rxg7+ {[%clk 0:01:28.3]}
34... Kxg7 {[%clk 0:00:21.1]} 35. Rf7+ {[%clk 0:01:28.7]} 35... Kg6 {[%clk
0:00:20.3]} 36. Qxh8 {[%clk 0:01:28.9]} 36... Qb4 {[%clk 0:00:16.4]} 37. Qg7+
{[%clk 0:01:23.6]} 37... Kh5 {[%clk 0:00:16.3]} 38. Rf1 {[%clk 0:01:23.8]} 38...
Qxd4+ {[%clk 0:00:15.4]} 39. Qxd4 {[%clk 0:01:22.9]} 1-0

[Event "Late-Titled-Tuesday-Blitz-December-26-2023"]
[Site "Chess.com"]
[Date "2023.12.26"]
[Round "10"]
[White "lukazz029"]
[Black "thesupera12"]
[Result "0-1"]
[WhiteElo "2027"]
[BlackElo "2400"]
[TimeControl "180+1"]
[EndTime "15:52:20 PST"]
[Termination "thesupera12 won by resignation"]

1. e4 {[%clk 0:03:00.9]} 1... g6 {[%clk 0:02:59.8]} 2. d4 {[%clk 0:02:59.4]}
2... d5 {[%clk 0:02:59.5]} 3. e5 {[%clk 0:02:59.3]} 3... c5 {[%clk 0:02:59]} 4.
c3 {[%clk 0:02:59.2]} 4... Nc6 {[%clk 0:02:58.7]} 5. Be3 {[%clk 0:02:48.4]} 5...
Bg7 {[%clk 0:02:56.4]} 6. h4 {[%clk 0:02:47.9]} 6... h5 {[%clk 0:02:54.7]} 7.
Nh3 {[%clk 0:02:40.3]} 7... Nh6 {[%clk 0:02:51.9]} 8. Ng5 {[%clk 0:02:40.2]}
8... Nf5 {[%clk 0:02:50.7]} 9. Na3 {[%clk 0:02:16.1]} 9... cxd4 {[%clk
0:02:44.1]} 10. cxd4 {[%clk 0:02:17]} 10... O-O {[%clk 0:02:40.9]} 11. Nc2
{[%clk 0:02:15.4]} 11... Nxe3 {[%clk 0:02:36.8]} 12. fxe3 {[%clk 0:02:10]} 12...
Bf5 {[%clk 0:02:36.6]} 13. Bd3 {[%clk 0:02:06.8]} 13... Qa5+ {[%clk 0:02:32.2]}
14. Kf2 {[%clk 0:01:54.1]} 14... Bxd3 {[%clk 0:02:23.8]} 15. Qxd3 {[%clk
0:01:55]} 15... Rac8 {[%clk 0:02:18.2]} 16. a3 {[%clk 0:01:44.9]} 16... Qa4
{[%clk 0:01:19.9]} 17. b3 {[%clk 0:01:39.2]} 17... Qa5 {[%clk 0:01:07.4]} 18.
Kg3 {[%clk 0:01:38.7]} 18... Nxe5 {[%clk 0:01:03.3]} 19. dxe5 {[%clk 0:01:26.8]}
19... Bxe5+ {[%clk 0:01:04.2]} 20. Kh3 {[%clk 0:01:25.7]} 20... Bxa1 {[%clk
0:01:02.5]} 21. Rxa1 {[%clk 0:01:24.6]} 21... Rc3 {[%clk 0:01:01.9]} 22. Qd2
{[%clk 0:01:23.7]} 22... Rfc8 {[%clk 0:00:58.6]} 23. Nd4 {[%clk 0:01:19.2]}
23... e5 {[%clk 0:00:57.1]} 24. Qf2 {[%clk 0:01:15.4]} 24... R8c7 {[%clk
0:00:43.1]} 25. Nf5 {[%clk 0:01:01.6]} 25... Qb6 {[%clk 0:00:35.3]} 26. Nh6+
{[%clk 0:00:51.8]} 26... Kg7 {[%clk 0:00:35.4]} 27. Nhxf7 {[%clk 0:00:49.2]}
27... Qxe3+ {[%clk 0:00:34.8]} 28. Qxe3 {[%clk 0:00:46.6]} 28... Rxe3+ {[%clk
0:00:35.7]} 29. Kh2 {[%clk 0:00:44.1]} 29... Rxf7 {[%clk 0:00:36.3]} 30. Nxf7
{[%clk 0:00:44.2]} 30... Kxf7 {[%clk 0:00:37.2]} 31. Rf1+ {[%clk 0:00:42.4]}
31... Ke6 {[%clk 0:00:37.1]} 0-1

[Event "Late-Titled-Tuesday-Blitz-December-26-2023"]
[Site "Chess.com"]
[Date "2023.12.26"]
[Round "10"]
[White "MasterofMasters2006"]
[Black "Nick12772"]
[Result "1-0"]
[WhiteElo "2106"]
[BlackElo "2284"]
[TimeControl "180+1"]
[EndTime "15:52:26 PST"]
[Termination "MasterofMasters2006 won by resignation"]

1. d4 {[%clk 0:03:00.9]} 1... Nf6 {[%clk 0:02:59.9]} 2. c4 {[%clk 0:03:01.2]}
2... g6 {[%clk 0:03:00]} 3. Nc3 {[%clk 0:03:01.2]} 3... d5 {[%clk 0:03:00.7]} 4.
Nf3 {[%clk 0:03:00.6]} 4... Bg7 {[%clk 0:03:00.6]} 5. Qb3 {[%clk 0:03:00.6]}
5... dxc4 {[%clk 0:03:00.8]} 6. Qxc4 {[%clk 0:03:01.5]} 6... O-O {[%clk
0:03:01.2]} 7. e4 {[%clk 0:03:01.6]} 7... a6 {[%clk 0:03:01.8]} 8. Be3 {[%clk
0:02:57.1]} 8... b5 {[%clk 0:03:01.8]} 9. Qd3 {[%clk 0:02:54.5]} 9... Bg4 {[%clk
0:02:57.1]} 10. Be2 {[%clk 0:02:53.7]} 10... Nc6 {[%clk 0:02:57.4]} 11. Rd1
{[%clk 0:02:45.7]} 11... Na5 {[%clk 0:02:52.4]} 12. O-O {[%clk 0:02:43.3]} 12...
Nc4 {[%clk 0:02:52.4]} 13. Bc1 {[%clk 0:02:35.5]} 13... e6 {[%clk 0:02:47.1]}
14. h3 {[%clk 0:02:33.2]} 14... Bxf3 {[%clk 0:02:46.7]} 15. Bxf3 {[%clk
0:02:34.1]} 15... c6 {[%clk 0:02:45.4]} 16. b3 {[%clk 0:02:28.5]} 16... Nb6
{[%clk 0:02:44.8]} 17. Bg5 {[%clk 0:02:23.9]} 17... Qc7 {[%clk 0:02:30.5]} 18.
Qe3 {[%clk 0:02:14.3]} 18... Rac8 {[%clk 0:02:08.1]} 19. Bf4 {[%clk 0:02:12.4]}
19... Qe7 {[%clk 0:01:56.1]} 20. d5 {[%clk 0:01:55.6]} 20... cxd5 {[%clk
0:01:43.9]} 21. exd5 {[%clk 0:01:54.2]} 21... Rxc3 {[%clk 0:01:38.8]} 22. Qxc3
{[%clk 0:01:52.6]} 22... Nbxd5 {[%clk 0:01:38.2]} 23. Qd2 {[%clk 0:01:47.8]}
23... Nxf4 {[%clk 0:01:36.1]} 24. Qxf4 {[%clk 0:01:47.5]} 24... Rd8 {[%clk
0:01:34.3]} 25. Rxd8+ {[%clk 0:01:45]} 25... Qxd8 {[%clk 0:01:35.2]} 26. Rd1
{[%clk 0:01:44.8]} 26... Qc8 {[%clk 0:01:31.7]} 27. Qd6 {[%clk 0:01:40.4]} 27...
Bf8 {[%clk 0:01:05.5]} 28. Qb6 {[%clk 0:01:35.9]} 28... Kg7 {[%clk 0:00:55.6]}
29. Rd8 {[%clk 0:01:25]} 29... Qc1+ {[%clk 0:00:53.7]} 30. Rd1 {[%clk
0:01:25.1]} 30... Qc8 {[%clk 0:00:50.4]} 31. Qb7 {[%clk 0:01:11.2]} 31... Qc2
{[%clk 0:00:43.1]} 32. Qxa6 {[%clk 0:01:07.7]} 32... Bc5 {[%clk 0:00:41.7]} 33.
Rf1 {[%clk 0:01:05]} 33... b4 {[%clk 0:00:39.9]} 34. Qc4 {[%clk 0:01:03]} 34...
Qf5 {[%clk 0:00:36.2]} 35. Rd1 {[%clk 0:00:50.6]} 35... Nd5 {[%clk 0:00:31.9]}
36. Qxc5 {[%clk 0:00:49.4]} 36... Qf6 {[%clk 0:00:25.8]} 37. Bxd5 {[%clk
0:00:48.2]} 1-0